fUSD/lending_fUSD_20241101
["ID","MTS","AMOUNT","RATE_DAILY","PERIOD"]
[341143966,1730471454179,-500.0,0.00042398,3]
[341143967,1730471454188,-500.0,0.00042398,3]
[341143968,1730471454198,-500.0,0.00042398,3]
[341143969,1730471454207,-500.0,0.00042398,3]
[341143970,1730471454217,-609.13289883,0.00042398,3]
[341143971,1730471454228,-500.0,0.00042398,3]
[341143972,1730471454239,-707.82,0.00042398,3]
[341143973,1730471454250,-578.08,0.00042398,3]
[341143974,1730471454260,-763.2,0.00042398,3]
[341143975,1730471454270,-151.0,0.00042398,14]
[341143976,1730471454280,-500.0,0.00042398,3]
[341143977,1730471454290,-2156.77,0.00042398,3]
[341143978,1730471454301,-151.0,0.00042398,14]
[341143979,1730471454311,-500.0,0.00042398,3]
[341143981,1730471454321,-151.0,0.00042398,14]
[341143983,1730471454331,-500.0,0.00042398,3]
[341143985,1730471454341,-151.0,0.00042398,14]
[341143987,1730471454352,-500.0,0.00042398,3]
[341143989,1730471454361,-500.0,0.00042398,3]
[341143991,1730471454371,-724.5,0.00042398,3]
[341143996,1730471454449,-521.67,0.00042398,3]
[341143997,1730471454472,-575.99,0.00042398,3]
[341143999,1730471454483,-500.0,0.00042398,3]
[341144001,1730471454493,-151.0,0.00042398,14]
[341144003,1730471454504,-887.42,0.00042398,3]
[341144005,1730471454514,-500.0,0.00042399,3]
[341144006,1730471454524,-500.0,0.00042399,3]
[341144007,1730471454534,-500.0,0.00042399,3]
[341144008,1730471454544,-500.0,0.00042399,3]
[341144009,1730471454554,-500.0,0.00042399,3]
[341144010,1730471454563,-500.0,0.00042399,3]
[341144011,1730471454572,-635.21,0.00042399,3]
[341144012,1730471454582,-500.0,0.00042399,3]
[341144013,1730471454592,-500.0,0.00042399,3]
[341144014,1730471454603,-1004.85,0.00042399,3]
[341144015,1730471454617,-500.0,0.00042399,3]
[341144016,1730471454627,-500.0,0.00042399,3]
[341144017,1730471454636,-207.69740871,0.00042399,3]
[341144019,1730471454646,-500.0,0.00042399,3]
[341144021,1730471454658,-500.0,0.00042399,3]
[341144022,1730471454667,-500.0,0.00042399,3]
[341144024,1730471454676,-500.0,0.00042399,3]
[341144026,1730471454686,-500.0,0.00042399,3]
[341144028,1730471454697,-500.0,0.00042399,3]
[341144030,1730471454707,-500.0,0.00042399,3]
[341144032,1730471454716,-500.0,0.00042399,3]
[341144034,1730471454728,-500.0,0.00042399,3]
[341144036,1730471454738,-500.0,0.00042399,3]
[341144038,1730471454747,-500.0,0.00042399,3]
[341144040,1730471454757,-500.0,0.00042399,3]
[341144042,1730471454767,-500.0,0.00042399,3]
[341144044,1730471454777,-616.44,0.00042399,3]
[341144046,1730471454788,-862.89,0.00042399,3]
[341144048,1730471454797,-151.0,0.00042399,14]
[341144050,1730471454808,-500.0,0.00042399,3]
[341144053,1730471454819,-500.0,0.00042399,3]
[341144055,1730471454829,-500.0,0.00042399,3]
[341144056,1730471454839,-500.0,0.00042399,3]
[341144058,1730471454849,-500.0,0.00042399,3]
[341144060,1730471454859,-157.501479,0.00042399,14]
[341144062,1730471454868,-500.0,0.00042399,3]
[341144064,1730471454878,-500.0,0.00042399,3]
[341144066,1730471454887,-673.59,0.00042399,3]
[341144068,1730471454897,-500.0,0.00042399,3]
[341144070,1730471454907,-500.0,0.00042399,3]
[341144072,1730471454917,-500.0,0.00042399,3]
[341144074,1730471454926,-500.0,0.00042399,3]
[341144076,1730471454935,-500.0,0.00042399,3]
[341144078,1730471454945,-500.0,0.00042399,3]
[341144080,1730471454955,-748.13,0.00042399,3]
[341144082,1730471454964,-500.0,0.00042399,3]
[341144084,1730471454976,-500.0,0.00042399,3]
[341144086,1730471454985,-720.09,0.00042399,3]
[341144088,1730471454995,-500.0,0.00042399,3]
[341144090,1730471455005,-561.89,0.00042399,3]
[341144092,1730471455014,-547.47065031,0.00042399,3]
[341144094,1730471455024,-500.0,0.00042399,3]
[341144096,1730471455033,-625.0,0.00042399,3]
[341144098,1730471455042,-500.0,0.00042399,3]
[341144100,1730471455051,-500.0,0.00042399,3]
[341144102,1730471455061,-500.0,0.00042399,3]
[341144104,1730471455070,-500.0,0.00042399,3]
[341144106,1730471455080,-500.0,0.00042399,3]
[341144108,1730471455090,-500.0,0.00042399,3]
[341144110,1730471455099,-1105.92,0.00042399,3]
[341144112,1730471455109,-500.0,0.00042399,3]
[341144114,1730471455119,-500.0,0.00042399,3]
[341144116,1730471455129,-500.0,0.00042399,3]
[341144118,1730471455139,-500.0,0.00042399,3]
[341144120,1730471455148,-566.79,0.00042399,3]
[341144121,1730471455157,-500.0,0.00042399,3]
[341144123,1730471455166,-500.0,0.00042399,3]
[341144125,1730471455175,-687.47,0.00042399,3]
[341144127,1730471455185,-500.0,0.00042399,3]
[341144129,1730471455194,-1413.29,0.00042399,3]
[341144131,1730471455203,-397.19742672,0.00042399,3]
[341144133,1730471455213,-500.0,0.00042399,3]
[341144135,1730471455224,-500.0,0.00042399,3]
[341144137,1730471455234,-322.14,0.00042399,3]
[341144139,1730471455243,-2357.59,0.00042399,3]
[341144141,1730471455253,-500.0,0.00042399,3]
[341144143,1730471455264,-2218.01,0.00042399,3]
[341144145,1730471455274,-1643.51,0.00042399,3]
[341144147,1730471455284,-500.0,0.00042399,3]
[341144149,1730471455294,-500.0,0.00042399,3]
[341144151,1730471455304,-535.18557002,0.00042399,3]
[341144153,1730471455313,-507.05,0.00042399,3]
[341144155,1730471455323,-265.167348,0.00042399,14]
[341144157,1730471455333,-500.0,0.00042399,3]
[341144159,1730471455343,-265.167348,0.00042399,14]
[341144162,1730471455353,-605.62,0.00042399,3]
[341144164,1730471455363,-500.0,0.00042399,3]
[341144166,1730471455372,-369.83411369,0.00042399,3]
[341144168,1730471455381,-713.19,0.00042399,3]
[341144170,1730471455392,-500.0,0.00042399,3]
[341144172,1730471455401,-363.51074331,0.00042399,3]
[341144173,1730471455417,-500.0,0.00042399,3]
[341144176,1730471455428,-500.0,0.00042399,3]
[341144177,1730471455438,-500.0,0.00042399,3]
[341144179,1730471455448,-500.0,0.00042399,3]
[341144182,1730471455458,-500.0,0.00042399,3]
[341144183,1730471455468,-500.0,0.00042399,3]
[341144185,1730471455479,-500.0,0.00042399,3]
[341144187,1730471455489,-500.0,0.00042399,3]
[341144189,1730471455499,-500.0,0.00042399,3]
[341144192,1730471455509,-500.0,0.00042399,3]
[341144194,1730471455519,-500.0,0.00042399,3]
[341144195,1730471455528,-500.0,0.00042399,3]
[341144197,1730471455538,-500.0,0.00042399,3]
[341144199,1730471455547,-500.0,0.00042399,3]
[341144201,1730471455557,-500.0,0.00042399,3]
[341144203,1730471455567,-500.0,0.00042399,3]
[341144205,1730471455576,-1168.08,0.00042399,3]
[341144207,1730471455586,-500.0,0.00042399,3]
[341144210,1730471455596,-500.0,0.00042399,3]
[341144212,1730471455607,-590.92,0.00042399,3]
[341144213,1730471455620,-500.0,0.00042399,3]
[341144215,1730471455630,-500.0,0.00042399,3]
[341144216,1730471455639,-1548.21,0.00042399,3]
[341144217,1730471455649,-500.0,0.00042399,3]
[341144218,1730471455659,-500.0,0.00042399,3]
[341144219,1730471455669,-500.0,0.00042399,3]
[341144220,1730471455678,-500.0,0.00042399,3]
[341144222,1730471455691,-500.0,0.00042399,3]
[341144224,1730471455701,-500.0,0.00042399,3]
[341144226,1730471455711,-500.0,0.00042399,3]
[341144228,1730471455721,-667.179776,0.00042399,14]
[341144230,1730471455731,-500.0,0.00042399,3]
[341144232,1730471455741,-500.0,0.00042399,3]
[341144234,1730471455751,-500.0,0.00042399,3]
[341144236,1730471455760,-500.0,0.00042399,3]
[341144238,1730471455770,-500.0,0.00042399,3]
[341144240,1730471455779,-500.0,0.00042399,3]
[341144242,1730471455789,-500.0,0.00042399,3]
[341144244,1730471455799,-500.0,0.00042399,3]
[341144246,1730471455809,-151.0,0.00042399,14]
[341144248,1730471455819,-500.0,0.00042399,3]
[341144250,1730471455828,-500.0,0.00042399,3]
[341144252,1730471455838,-500.0,0.00042399,3]
[341144262,1730471455921,-500.0,0.00042399,3]
[341144264,1730471455932,-500.0,0.00042399,3]
[341144266,1730471455942,-500.0,0.00042399,3]
[341144268,1730471455952,-500.0,0.00042399,3]
[341144270,1730471455962,-500.0,0.00042399,3]
[341144272,1730471455972,-500.0,0.00042399,3]
[341144274,1730471455982,-500.0,0.00042399,3]
[341144276,1730471455991,-500.0,0.00042399,3]
[341144278,1730471456001,-500.0,0.00042399,3]
[341144280,1730471456011,-500.0,0.00042399,3]
[341144282,1730471456021,-509.95,0.00042399,3]
[341144284,1730471456030,-1335.41,0.000424,30]
[341144286,1730471456040,-500.0,0.000424,3]
[341144288,1730471456050,-500.0,0.000424,3]
[341144290,1730471456060,-309.33,0.000424,3]
[341144292,1730471456069,-229.83227134,0.000424,3]
[341144295,1730471456080,-151.0,0.000424,14]
[341144297,1730471456090,-238.387845,0.000424,14]
[341144299,1730471456099,-238.387845,0.000424,14]
[341144301,1730471456109,-196.0,0.00042435,30]
[341144303,1730471456119,-196.0,0.00042445,30]
[341144305,1730471456128,-500.0,0.00042452,3]
[341144306,1730471456137,-541.24,0.00042452,3]
[341144308,1730471456146,-1259.39,0.00042452,3]
[341144310,1730471456156,-767.65,0.00042452,3]
[341144312,1730471456165,-567.94,0.00042452,3]
[341144314,1730471456175,-500.0,0.00042452,3]
[341144316,1730471456184,-514.96,0.00042452,3]
[341144318,1730471456195,-500.0,0.00042453,3]
[341144321,1730471456205,-2578.28,0.00042453,3]
[341144323,1730471456214,-500.0,0.00042453,3]
[341144325,1730471456225,-318.83017953,0.00042453,3]
[341144327,1730471456235,-577.06,0.00042453,3]
[341144329,1730471456244,-554.44,0.00042453,3]
[341144331,1730471456254,-968.7,0.00042453,3]
[341144333,1730471456264,-798.52,0.00042453,3]
[341144335,1730471456275,-569.42120393,0.00042453,3]
[341144337,1730471456285,-861.33,0.00042453,3]
[341144339,1730471456295,-500.0,0.00042453,3]
[341144341,1730471456304,-1279.53,0.00042453,3]
[341144343,1730471456313,-500.0,0.00042453,3]
[341144345,1730471456323,-500.0,0.00042453,3]
[341144347,1730471456332,-151.0,0.00042453,14]
[341144349,1730471456342,-500.0,0.00042453,3]
[341144351,1730471456351,-151.0,0.00042453,14]
[341144353,1730471456360,-232.175486,0.00042453,14]
[341144355,1730471456370,-151.0,0.00042453,14]
[341144357,1730471456380,-500.0,0.00042453,3]
[341144359,1730471456390,-1278.47,0.00042453,3]
[341144361,1730471456399,-1036.41,0.00042453,3]
[341144363,1730471456409,-196.0,0.00042455,30]
[341144365,1730471456418,-500.0,0.00042461,3]
[341144366,1730471456428,-168.91027855,0.00042462,28]
[341144368,1730471456437,-500.0,0.00042465,3]
[341144370,1730471456447,-150.0,0.00042465,3]
[341144372,1730471456456,-150.0,0.00042465,3]
[341144374,1730471456466,-880.0,0.00042465,3]
[341144376,1730471456479,-509.82073224,0.00042465,3]
[341144378,1730471456488,-250.0,0.00042465,3]
[341144380,1730471456499,-652.03485454,0.00042465,3]
[341144382,1730471456508,-500.0,0.00042465,3]
[341144385,1730471456518,-424.0,0.00042465,3]
[341144387,1730471456528,-500.0,0.00042465,3]
[341144388,1730471456537,-2376.25,0.00042465,3]
[341144390,1730471456547,-500.0,0.00042465,3]
[341144392,1730471456556,-500.0,0.00042465,3]
[341144394,1730471456566,-500.0,0.00042465,3]
[341144396,1730471456576,-1001.26,0.00042465,3]
[341144398,1730471456585,-886.16,0.00042465,3]
[341144400,1730471456595,-500.0,0.00042465,3]
[341144402,1730471456605,-500.0,0.00042465,3]
[341144404,1730471456618,-1396.84,0.00042465,3]
[341144406,1730471456628,-643.15,0.00042465,3]
[341144408,1730471456637,-1000.0,0.000425,14]
[341144410,1730471456647,-234.507133,0.00042538,14]
[341144412,1730471456658,-3952.40758568,0.0004254,15]
[341144414,1730471456668,-291.21666,0.0004254,14]
[341144416,1730471456677,-500.0,0.00042547,32]
[341144418,1730471456687,-434.9509083,0.00042557,2]
[341144420,1730471456697,-184.28893103,0.00042572,120]
[341144422,1730471456707,-3085.79284197,0.00042573,2]
[341144424,1730471456716,-151.0,0.00042573,14]
[341144425,1730471456728,-2093.9312795,0.00042573,2]
[341144426,1730471456737,-500.0,0.00042672,3]
[341144427,1730471456747,-500.0,0.00042672,3]
[341144428,1730471456757,-500.0,0.00042672,3]
[341144429,1730471456766,-500.0,0.00042672,3]
[341144430,1730471456776,-500.0,0.00042672,3]
[341144432,1730471456785,-170.0,0.00042672,3]
[341144434,1730471456794,-510.57953577,0.00042672,3]
[341144436,1730471456804,-281.41800668,0.00042672,3]
[341144438,1730471456813,-592.95,0.00042672,3]
[341144440,1730471456823,-980.67,0.00042672,3]
[341144442,1730471456831,-500.0,0.00042672,3]
[341144444,1730471456841,-1167.89,0.00042672,3]
[341144446,1730471456850,-1204.55,0.00042672,3]
[341144447,1730471456859,-500.0,0.00042672,3]
[341144449,1730471456869,-500.0,0.00042672,3]
[341144451,1730471456878,-500.0,0.00042672,3]
[341144453,1730471456887,-500.0,0.00042672,3]
[341144455,1730471456897,-704.73,0.00042672,3]
[341144457,1730471456907,-829.99,0.00042672,3]
[341144459,1730471456915,-2220.69,0.00042672,3]
[341144461,1730471456925,-500.0,0.00042672,3]
[341144463,1730471456934,-500.0,0.00042672,3]
[341144465,1730471456944,-1235.62,0.00042672,3]
[341144467,1730471456953,-500.0,0.00042672,3]
[341144468,1730471456962,-500.0,0.00042672,3]
[341144470,1730471456973,-500.0,0.00042672,3]
[341144472,1730471456983,-500.0,0.00042672,3]
[341144474,1730471456992,-720.99,0.00042672,3]
[341144476,1730471457001,-510.44,0.00042672,3]
[341144478,1730471457010,-500.0,0.00042672,3]
[341144480,1730471457019,-500.0,0.00042672,3]
[341144482,1730471457029,-500.0,0.00042672,3]
[341144484,1730471457038,-500.0,0.00042672,3]
[341144486,1730471457048,-500.0,0.00042672,3]
[341144488,1730471457057,-500.0,0.00042672,3]
[341144490,1730471457066,-500.0,0.00042672,3]
[341144492,1730471457075,-500.0,0.00042672,3]
[341144494,1730471457085,-500.0,0.00042672,3]
[341144496,1730471457095,-698.55,0.00042672,3]
[341144498,1730471457104,-585.2,0.00042672,3]
[341144500,1730471457113,-361.90854691,0.00042672,3]
[341144502,1730471457123,-500.0,0.00042672,3]
[341144504,1730471457132,-500.0,0.00042672,3]
[341144506,1730471457142,-1010.74,0.00042672,3]
[341144508,1730471457152,-869.04,0.00042672,3]
[341144516,1730471457228,-793.5,0.00042672,3]
[341144518,1730471457239,-667.179776,0.00042672,14]
[341144520,1730471457248,-399.00272798,0.00042672,3]
[341144522,1730471457258,-500.0,0.00042672,3]
[341144524,1730471457267,-500.0,0.00042672,3]
[341144526,1730471457277,-500.0,0.00042672,3]
[341144528,1730471457286,-866.45,0.00042672,3]
[341144530,1730471457297,-500.0,0.00042672,3]
[341144532,1730471457306,-2701.97,0.00042672,3]
[341144534,1730471457315,-1537.58,0.00042672,3]
[341144536,1730471457325,-500.0,0.00042672,3]
[341144538,1730471457334,-500.0,0.00042672,3]
[341144540,1730471457344,-500.0,0.00042672,3]
[341144542,1730471457353,-500.0,0.00042672,3]
[341144544,1730471457362,-500.0,0.00042672,3]
[341144546,1730471457371,-500.0,0.00042672,3]
[341144548,1730471457381,-707.82,0.00042672,3]
[341144550,1730471457390,-578.08,0.00042672,3]
[341144552,1730471457399,-763.2,0.00042672,3]
[341144554,1730471457409,-151.0,0.00042672,14]
[341144556,1730471457418,-500.0,0.00042672,3]
[341144558,1730471457428,-2156.77,0.00042672,3]
[341144560,1730471457437,-500.0,0.00042672,3]
[341144562,1730471457447,-151.0,0.00042672,14]
[341144564,1730471457457,-500.0,0.00042672,3]
[341144566,1730471457466,-500.0,0.00042672,3]
[341144568,1730471457477,-151.0,0.00042672,14]
[341144570,1730471457487,-500.0,0.00042672,3]
[341144572,1730471457496,-724.5,0.00042672,3]
[341144574,1730471457505,-521.67,0.00042672,3]
[341144576,1730471457514,-575.99,0.00042672,3]
[341144578,1730471457523,-500.0,0.00042672,3]
[341144580,1730471457533,-887.42,0.00042672,3]
[341144582,1730471457542,-500.0,0.00042673,3]
[341144584,1730471457551,-618.12406138,0.00042673,3]
[341144586,1730471457561,-500.0,0.00042673,3]
[341144588,1730471457570,-500.0,0.00042673,3]
[341144590,1730471457579,-500.0,0.00042673,3]
[341144592,1730471457588,-500.0,0.00042673,3]
[341144594,1730471457598,-635.21,0.00042673,3]
[341144596,1730471457608,-500.0,0.00042673,3]
[341144598,1730471457619,-500.0,0.00042673,3]
[341144600,1730471457629,-1004.85,0.00042673,3]
[341144602,1730471457638,-500.0,0.00042673,3]
[341144604,1730471457647,-500.0,0.00042673,3]
[341144606,1730471457658,-347.68806015,0.00042673,3]
[341144607,1730471457667,-500.0,0.00042673,3]
[341144609,1730471457677,-500.0,0.00042673,3]
[341144612,1730471457688,-500.0,0.00042673,3]
[341144614,1730471457699,-500.0,0.00042673,3]
[341144616,1730471457709,-500.0,0.00042673,3]
[341144617,1730471457717,-500.0,0.00042673,3]
[341144619,1730471457728,-500.0,0.00042673,3]
[341144620,1730471457738,-500.0,0.00042673,3]
[341144621,1730471457747,-500.0,0.00042673,3]
[341144622,1730471457756,-500.0,0.00042673,3]
[341144623,1730471457765,-500.0,0.00042673,3]
[341144624,1730471457775,-500.0,0.00042673,3]
[341144625,1730471457784,-616.44,0.00042673,3]
[341144626,1730471457794,-862.89,0.00042673,3]
[341144627,1730471457803,-500.0,0.00042673,3]
[341144628,1730471457812,-500.0,0.00042673,3]
[341144629,1730471457821,-500.0,0.00042673,3]
[341144630,1730471457831,-500.0,0.00042673,3]
[341144631,1730471457840,-555.66,0.00042673,3]
[341144632,1730471457850,-500.0,0.00042673,3]
[341144633,1730471457859,-392.1,0.00042673,3]
[341144634,1730471457869,-673.59,0.00042673,3]
[341144635,1730471457878,-500.0,0.00042673,3]
[341144636,1730471457888,-500.0,0.00042673,3]
[341144637,1730471457897,-500.0,0.00042673,3]
[341144638,1730471457906,-500.0,0.00042673,3]
[341144639,1730471457916,-500.0,0.00042673,3]
[341144640,1730471457925,-500.0,0.00042673,3]
[341144641,1730471457935,-748.13,0.00042673,3]
[341144642,1730471457944,-343.11150557,0.00042673,3]
[341144643,1730471457954,-500.0,0.00042673,3]
[341144644,1730471457964,-720.09,0.00042673,3]
[341144645,1730471457974,-500.0,0.00042673,3]
[341144646,1730471457984,-561.89,0.00042673,3]
[341144647,1730471457993,-500.0,0.00042673,3]
[341144648,1730471458002,-625.0,0.00042673,3]
[341144649,1730471458011,-500.0,0.00042673,3]
[341144650,1730471458020,-151.0,0.00042673,14]
[341144651,1730471458030,-500.0,0.00042673,3]
[341144652,1730471458039,-238.387845,0.00042673,14]
[341144653,1730471458049,-500.0,0.00042673,3]
[341144654,1730471458059,-238.387845,0.00042673,14]
[341144655,1730471458068,-500.0,0.00042673,3]
[341144656,1730471458077,-500.0,0.00042673,3]
[341144657,1730471458086,-500.0,0.00042673,3]
[341144658,1730471458095,-1105.92,0.00042673,3]
[341144659,1730471458105,-500.0,0.00042673,3]
[341144660,1730471458114,-500.0,0.00042673,3]
[341144661,1730471458123,-500.0,0.00042673,3]
[341144662,1730471458132,-500.0,0.00042673,3]
[341144663,1730471458141,-566.79,0.00042673,3]
[341144664,1730471458151,-500.0,0.00042673,3]
[341144665,1730471458172,-500.0,0.00042673,3]
[341144666,1730471458181,-687.47,0.00042673,3]
[341144667,1730471458190,-500.0,0.00042673,3]
[341144668,1730471458200,-1413.29,0.00042673,3]
[341144669,1730471458209,-500.0,0.00042673,3]
[341144670,1730471458218,-500.0,0.00042673,3]
[341144671,1730471458227,-2357.59,0.00042673,3]
[341144672,1730471458237,-500.0,0.00042673,3]
[341144673,1730471458246,-2218.01,0.00042673,3]
[341144674,1730471458256,-1643.51,0.00042673,3]
[341144675,1730471458266,-500.0,0.00042673,3]
[341144676,1730471458275,-500.0,0.00042673,3]
[341144677,1730471458285,-507.05,0.00042673,3]
[341144678,1730471458294,-265.167348,0.00042673,14]
[341144679,1730471458303,-500.0,0.00042673,3]
[341144680,1730471458313,-265.167348,0.00042673,14]
[341144681,1730471458322,-605.62,0.00042673,3]
[341144682,1730471458331,-500.0,0.00042673,3]
[341144683,1730471458341,-713.19,0.00042673,3]
[341144684,1730471458407,-179.28,0.00042673,3]
[341144685,1730471458422,-500.0,0.00042673,3]
[341144686,1730471458432,-500.0,0.00042673,3]
[341144687,1730471458441,-500.0,0.00042673,3]
[341144688,1730471458451,-500.0,0.00042673,3]
[341144689,1730471458461,-500.0,0.00042673,3]
[341144690,1730471458471,-500.0,0.00042673,3]
[341144691,1730471458483,-500.0,0.00042673,3]
[341144692,1730471458492,-500.0,0.00042673,3]
[341144693,1730471458502,-500.0,0.00042673,3]
[341144694,1730471458511,-500.0,0.00042673,3]
[341144695,1730471458521,-453.08689864,0.00042673,3]
[341144696,1730471458530,-500.0,0.00042673,3]
[341144697,1730471458539,-500.0,0.00042673,3]
[341144698,1730471458549,-500.0,0.00042673,3]
[341144699,1730471458559,-500.0,0.00042673,3]
[341144700,1730471458568,-1168.08,0.00042673,3]
[341144701,1730471458578,-500.0,0.00042673,3]
[341144702,1730471458588,-500.0,0.00042673,3]
[341144703,1730471458597,-590.92,0.00042673,3]
[341144704,1730471458607,-500.0,0.00042673,3]
[341144705,1730471458621,-500.0,0.00042673,3]
[341144706,1730471458630,-1548.21,0.00042673,3]
[341144707,1730471458639,-500.0,0.00042673,3]
[341144708,1730471458650,-500.0,0.00042673,3]
[341144709,1730471458659,-500.0,0.00042673,3]
[341144710,1730471458669,-500.0,0.00042673,3]
[341144711,1730471458679,-500.0,0.00042673,3]
[341144712,1730471458690,-500.0,0.00042673,3]
[341144713,1730471458700,-500.0,0.00042673,3]
[341144714,1730471458710,-500.0,0.00042673,3]
[341144715,1730471458719,-500.0,0.00042673,3]
[341144716,1730471458730,-500.0,0.00042673,3]
[341144717,1730471458739,-500.0,0.00042673,3]
[341144718,1730471458749,-500.0,0.00042673,3]
[341144719,1730471458759,-500.0,0.00042673,3]
[341144720,1730471458768,-500.0,0.00042673,3]
[341144721,1730471458779,-500.0,0.00042673,3]
[341144722,1730471458788,-500.0,0.00042673,3]
[341144723,1730471458797,-500.0,0.00042673,3]
[341144724,1730471458807,-478.35,0.00042673,3]
[341144725,1730471458816,-550.32762718,0.00042673,3]
[341144726,1730471458826,-500.0,0.00042673,3]
[341144727,1730471458836,-500.0,0.00042673,3]
[341144728,1730471458845,-500.0,0.00042673,3]
[341144729,1730471458855,-500.0,0.00042673,3]
[341144730,1730471458865,-500.0,0.00042673,3]
[341144731,1730471458875,-500.0,0.00042673,3]
[341144732,1730471458884,-500.0,0.00042673,3]
[341144733,1730471458893,-500.0,0.00042673,3]
[341144734,1730471458903,-1269.63,0.00042673,3]
[341144735,1730471458913,-509.95,0.00042673,3]
[341144736,1730471458922,-500.0,0.00042674,3]
[341144737,1730471458932,-500.0,0.00042674,3]
[341144738,1730471458941,-1575.04,0.00042684,120]
[341144739,1730471458951,-500.0,0.00042726,3]
[341144740,1730471458960,-541.24,0.00042726,3]
[341144741,1730471458970,-1259.39,0.00042726,3]
[341144742,1730471458980,-767.65,0.00042726,3]
[341144743,1730471458990,-567.94,0.00042726,3]
[341144744,1730471459000,-500.0,0.00042726,3]
[341144745,1730471459009,-514.96,0.00042726,3]
[341144746,1730471459019,-500.0,0.00042727,3]
[341144747,1730471459029,-2578.28,0.00042727,3]
[341144748,1730471459038,-500.0,0.00042727,3]
[341144749,1730471459048,-577.06,0.00042727,3]
[341144750,1730471459057,-554.44,0.00042727,3]
[341144751,1730471459067,-968.7,0.00042727,3]
[341144752,1730471459075,-798.52,0.00042727,3]
[341144753,1730471459084,-667.179782,0.00042727,14]
[341144754,1730471459094,-861.33,0.00042727,3]
[341144755,1730471459103,-500.0,0.00042727,3]
[341144756,1730471459112,-1279.53,0.00042727,3]
[341144757,1730471459122,-500.0,0.00042727,3]
[341144758,1730471459131,-263.89786918,0.00042727,3]
[341144759,1730471459140,-170.5,0.00042727,3]
[341144760,1730471459149,-500.0,0.00042727,3]
[341144761,1730471459158,-1278.47,0.00042727,3]
[341144762,1730471459167,-1036.41,0.00042727,3]
[341144763,1730471459177,-500.0,0.00042735,3]
[341144764,1730471459186,-500.0,0.00042739,3]
[341144765,1730471459195,-165.00224175,0.00042739,3]
[341144766,1730471459205,-150.0,0.00042739,3]
[341144767,1730471459214,-880.0,0.00042739,3]
[341144768,1730471459223,-250.0,0.00042739,3]
[341144769,1730471459235,-500.0,0.00042739,3]
[341144770,1730471459244,-424.0,0.00042739,3]
[341144771,1730471459254,-500.0,0.00042739,3]
[341144772,1730471459263,-2376.25,0.00042739,3]
[341144773,1730471459272,-500.0,0.00042739,3]
[341144774,1730471459281,-500.0,0.00042739,3]
[341144775,1730471459291,-500.0,0.00042739,3]
[341144776,1730471459300,-1001.26,0.00042739,3]
[341144777,1730471459309,-886.16,0.00042739,3]
[341144778,1730471459319,-500.0,0.00042739,3]
[341144779,1730471459328,-500.0,0.00042739,3]